lending/lending_fUSD_20251015
["ID","MTS","AMOUNT","RATE_DAILY","PERIOD"]
[391310988,1760506240531,-2406.87644044,0.00014524,2]
[391310989,1760506240541,-2406.87644044,0.00014599,2]
[391310990,1760506240550,-289.7376,0.000146,2]
[391310991,1760506240559,-173.94451858,0.00014637,2]
[391310992,1760506240568,-2406.87644044,0.00014674,2]
[391310993,1760506240578,-1926.96452918,0.00014699,2]
[391310994,1760506240587,-357.16320182,0.000147,2]
[391310995,1760506240598,-445.30339811,0.000147,2]
[391310996,1760506240616,-325.42295744,0.000147,2]
[391310997,1760506240631,-1968.40184263,0.000147,2]
[391310998,1760506240640,-460.0,0.0001473,2]
[391310999,1760506240649,-200.0,0.00014749,2]
[391311000,1760506240658,-200.0,0.00014749,2]
[391311001,1760506240668,-2406.87644044,0.0001475,2]
[391311002,1760506240677,-4056.17665,0.0001475,2]
[391311003,1760506240686,-151.0,0.00014757,2]
[391311004,1760506240695,-151.0,0.00014757,2]
[391311005,1760506240705,-2500.0,0.00014764,2]
[391311006,1760506240714,-199.02660303,0.00014767,2]
[391311007,1760506240724,-515.6293,0.000148,2]
[391311008,1760506240734,-245.05967388,0.000148,2]
[391311009,1760506240743,-5000.0,0.000148,2]
[391311010,1760506240753,-168.34837331,0.000148,2]
[391311011,1760506240762,-1778.48111671,0.000148,2]
[391311012,1760506240775,-11726.87703613,0.000148,2]
[391311013,1760506240784,-151.0,0.00014822,2]
[391311014,1760506240793,-2406.87644044,0.00014825,2]
[391311015,1760506240802,-245.05967385,0.00014825,2]
[391311016,1760506240812,-168.34837328,0.00014833,2]
[391311017,1760506240821,-342.78358858,0.00014844,2]
[391311018,1760506240832,-5359.19075243,0.00014846,2]
[391311019,1760506240841,-250.0,0.00014848,2]
[391311020,1760506240850,-150.0,0.00014848,2]
[391311021,1760506240860,-252.55753975,0.00014848,2]
[391311022,1760506240869,-2000.0,0.0001485,2]
[391311023,1760506240878,-245.05967385,0.0001485,2]
[391311024,1760506240887,-150.2588172,0.00014864,2]
[391311025,1760506240897,-26122.7093712,0.00014864,2]
[391311026,1760506240907,-12768.4692681,0.00014864,2]
[391311027,1760506240918,-3097.5342991,0.00014864,2]
[391311028,1760506240928,-168.34837328,0.00014867,2]
[391311029,1760506240937,-252.55753975,0.00014867,2]
[391311030,1760506240947,-500.0,0.00014873,2]
[391311031,1760506240956,-500.0,0.00014873,2]
[391311032,1760506240966,-500.0,0.00014873,2]
[391311033,1760506240976,-500.0,0.00014873,2]
[391311034,1760506240986,-252.55753975,0.00014873,2]
[391311035,1760506240995,-245.05967385,0.00014875,2]
[391311036,1760506241004,-5359.19075243,0.0001488,2]
[391311037,1760506241014,-9075.85,0.00014886,2]
[391311038,1760506241024,-9075.85,0.0001489,2]
[391311039,1760506241033,-384.46580467,0.0001489,2]
[391311040,1760506241042,-5359.19075243,0.00014891,2]
[391311041,1760506241052,-500.0,0.00014895,2]
[391311042,1760506241061,-500.0,0.00014895,2]
[391311043,1760506241071,-438.12909154,0.00014895,2]
[391311044,1760506241080,-60305.78762104,0.00014896,2]
[391311045,1760506241089,-151.0,0.00014897,2]
[391311046,1760506241098,-2006.0,0.000149,2]
[391311047,1760506241107,-223475.87848462,0.000149,2]
[391311051,1760506242839,-5750.0964,0.000149,2]
[391311076,1760506245929,-500.0,0.00014456,2]
[391311077,1760506245938,-10772.0,0.00014873,2]
[391311078,1760506245992,-11275.0,0.00014873,2]
[391311079,1760506323477,411.80132182,0.00030387,120]
[391311080,1760506795579,992.18,0.0003039,60]
[391311082,1760507218127,-158.28245331,0.00013389,2]
[391311083,1760507218147,-408.4213,0.00013398,2]
[391311084,1760507218168,-2000.0,0.00013489,2]
[391311085,1760507218188,-300.0,0.00013566,2]
[391311086,1760507218208,-1133.29624669,0.00013567,2]
[391311087,1760507220966,-866.70375331,0.00013567,2]
[391311088,1760507220987,-2000.0,0.00013567,2]
[391311089,1760507221007,-1133.29624669,0.0001358,2]
[391311090,1760507223615,-1932.30375331,0.0001358,2]
[391311091,1760507223636,-2067.69624669,0.00013601,2]
[391311092,1760507226275,-719.25375331,0.00013601,2]
[391311093,1760507226296,-300.0,0.00013615,2]
[391311094,1760507226316,-1200.0,0.00013615,2]
[391311095,1760507226336,-300.0,0.00013615,2]
[391311096,1760507226357,-1480.74624669,0.00013616,2]
[391311106,1760507242287,152.39,6.758e-05,2]
[391311107,1760507242486,152.39,7.321e-05,2]
[391311108,1760507242679,152.39,7.884e-05,2]
[391311109,1760507242868,152.39,8.447e-05,2]
[391311110,1760507243073,152.39,9.011e-05,2]
[391311111,1760507243476,152.39,9.574e-05,2]
[391311112,1760507243677,152.39,0.00010137,2]
[391311113,1760507243867,152.39,0.000107,2]
[391311114,1760507244310,152.39,0.00011263,2]
[391311115,1760507244496,152.39,0.00011826,2]
[391311116,1760507244684,152.39,0.00012389,2]
[391311118,1760507271180,-152.39,0.00012953,2]
[391311119,1760507271200,-250.0,0.00013482,7]
[391311120,1760507271220,-152.39,0.00013516,2]
[391311121,1760507271243,-445.22,0.00013616,2]
[391311122,1760507318269,-200.0,0.00013517,2]
[391311131,1760507431945,-168.33,0.00013509,2]
[391311132,1760507431955,-6951.24375331,0.00013616,2]
[391311133,1760507431965,-666.0,0.0001364,3]
[391311134,1760507431974,-1200.0,0.00013698,2]
[391311135,1760507431984,-166.66,0.00013699,2]
[391311136,1760507431993,-556.05,0.00013699,2]
[391311137,1760507432003,-300.0,0.00013733,2]
[391311138,1760507432013,-300.0,0.00013733,2]
[391311139,1760507432022,-1600.0,0.00013734,2]
[391311140,1760507432031,-166.66,0.00013836,2]
[391311141,1760507432039,-166.69,0.00013875,2]
[391311142,1760507432048,-216.0,0.0001392,2]
[391311143,1760507432057,-200.0,0.0001395,2]
[391311144,1760507432067,-166.66,0.00013973,2]
[391311145,1760507432076,-216.0,0.00014036,2]
[391311146,1760507432085,-166.66,0.0001411,2]
[391311147,1760507432095,-9552.16786547,0.00014163,2]
[391311148,1760507432103,-151.0,0.00014163,2]
[391311149,1760507432113,-302.25793521,0.00014163,2]
[391311150,1760507432123,-277.35679052,0.00014163,2]
[391311151,1760507432132,-173.67,0.00014209,2]
[391311152,1760507432141,-150.0,0.00014217,2]
[391311153,1760507432150,-9905.5980765,0.00014218,2]
[391311154,1760507432159,-216.0,0.00014226,2]
[391311155,1760507432168,-166.66,0.00014247,2]
[391311157,1760507432177,-216.0,0.00014247,2]
[391311159,1760507432187,-10272.10520533,0.00014273,2]
[391311161,1760507432196,-168.0,0.00014283,2]
[391311163,1760507432205,-216.0,0.00014327,2]
[391311165,1760507432214,-963.6700766,0.00014328,2]
[391311179,1760507432389,-9688.50302132,0.00014328,2]
[391311181,1760507432398,-11046.30350255,0.00014383,2]
[391311183,1760507432407,-166.66,0.00014384,2]
[391311185,1760507432416,-216.0,0.00014385,2]
[391311186,1760507432425,-168.0,0.00014394,2]
[391311187,1760507432434,-5372.57773206,0.00014438,2]
[391311188,1760507432446,-6082.43900008,0.00014438,2]
[391311189,1760507432456,-600.0,0.00014456,2]
[391311190,1760507432466,-500.0,0.00014456,2]
[391311191,1760507432475,-11878.85235123,0.00014493,2]
[391311192,1760507432485,-4173.11463539,0.00014548,2]
[391311193,1760507432495,-322.6107,0.00014583,2]
[391311194,1760507432505,-151.0,0.00014583,2]
[391311195,1760507432515,-250.31078022,0.00014583,2]
[391311196,1760507432526,-265.28173875,0.00014583,2]
[391311197,1760507432536,-1445.22339688,0.00014601,2]
[391311198,1760507432545,-168.0,0.0001461,2]
[391311199,1760507432556,-168.0,0.00014666,2]
[391311200,1760507432565,-8329.98225921,0.00014699,2]
[391311201,1760507432574,-3686.02513304,0.000147,2]
[391311202,1760507432584,-186.79231722,0.000147,2]
[391311203,1760507432593,-169.99999584,0.000147,2]
[391311204,1760507432601,-2500.0,0.000147,2]
[391311205,1760507432610,-160.44945975,0.00014711,2]
[391311206,1760507432619,-2134.80753903,0.00014711,2]
[391311207,1760507432980,-8329.98225918,0.00014721,2]
[391311208,1760507432999,-3686.02513298,0.00014722,2]
[391311209,1760507433009,-195.0,0.00014728,2]
[391311210,1760507433018,-150.0,0.00014738,2]
[391311211,1760507433027,-150.0,0.00014738,2]
[391311212,1760507433037,-233.76754975,0.00014738,2]
[391311213,1760507433046,-8329.98225918,0.00014744,2]
[391311214,1760507433055,-2134.80753902,0.00014744,2]
[391311215,1760507433064,-3686.02513298,0.00014744,2]
[391311216,1760507433074,-3832.86449,0.0001475,2]
[391311217,1760507433083,-8329.98225918,0.00014766,2]
[391311218,1760507433092,-3686.02513298,0.00014767,2]
[391311219,1760507433102,-169.99999581,0.00014767,2]
[391311220,1760507433111,-5000.0,0.00014773,2]
[391311221,1760507433120,-2134.80753902,0.00014777,2]
[391311222,1760507433129,-8329.98225918,0.00014788,2]
[391311223,1760507433139,-3686.02513298,0.00014789,2]
[391311224,1760507433148,-500.0,0.00014789,2]
[391311225,1760507433157,-150.0,0.00014789,2]
[391311226,1760507433167,-150.0,0.00014789,2]
[391311227,1760507433176,-267.024451,0.0001479,2]
[391311228,1760507433187,-9075.85,0.0001479,2]
[391311229,1760507433198,-9075.85,0.0001479,2]
[391311230,1760507433207,-384.46580467,0.0001479,2]
[391311231,1760507433218,-150.0,0.00014793,2]
[391311232,1760507433227,-151.0,0.00014796,2]
[391311233,1760507433237,-151.0,0.00014797,2]
[391311234,1760507433246,-499.99999999,0.00014799,2]
[391311235,1760507433255,-500.0,0.00014799,2]
[391311236,1760507433264,-500.0,0.00014799,2]
[391311237,1760507433273,-500.0,0.00014799,2]
[391311238,1760507433283,-500.0,0.00014799,2]
[391311239,1760507433294,-500.0,0.00014799,2]
[391311240,1760507433303,-500.0,0.00014799,2]
[391311241,1760507433312,-500.0,0.00014799,2]
[391311242,1760507433321,-500.0,0.00014799,2]
[391311243,1760507433330,-150.0,0.00014799,2]
[391311244,1760507433341,-500.0,0.00014799,2]
[391311245,1760507433350,-150.0,0.00014799,2]
[391311246,1760507433359,-150.0,0.00014799,2]
[391311247,1760507433369,-150.0,0.00014799,2]
[391311248,1760507433378,-150.0,0.00014799,2]
[391311249,1760507433387,-150.0,0.00014799,2]
[391311250,1760507433396,-150.0,0.00014799,2]
[391311251,1760507433405,-150.0,0.00014799,2]
[391311252,1760507433414,-150.61243539,0.00014799,2]
[391311253,1760507433423,-263.34295859,0.00014799,2]
[391311254,1760507433432,-151.26382251,0.00014799,2]
[391311255,1760507433441,-150.0,0.00014799,2]
[391311256,1760507433450,-150.0,0.00014799,2]
[391311257,1760507433459,-500.0,0.00014799,2]
[391311258,1760507433468,-500.0,0.00014799,2]
[391311259,1760507433477,-150.0,0.00014799,2]
[391311260,1760507433486,-150.0,0.00014799,2]
[391311261,1760507433494,-150.0,0.00014799,2]
[391311262,1760507433503,-150.0,0.00014799,2]
[391311263,1760507433512,-214.57173914,0.00014799,2]
[391311264,1760507433522,-150.0,0.00014799,2]
[391311265,1760507433531,-150.0,0.00014799,2]
[391311266,1760507433541,-150.0,0.00014799,2]
[391311267,1760507433550,-200.0,0.00014799,2]
[391311268,1760507433559,-500.0,0.00014799,2]
[391311269,1760507433568,-252.05028089,0.00014799,2]
[391311270,1760507433577,-150.42483477,0.00014799,2]
[391311271,1760507433587,-500.0,0.00014799,2]
[391311272,1760507433596,-150.0,0.00014799,2]
[391311273,1760507433605,-150.0,0.00014799,2]
[391311274,1760507433614,-500.0,0.00014799,2]
[391311275,1760507433623,-500.0,0.00014799,2]
[391311276,1760507433632,-309.86118041,0.00014799,2]
[391311277,1760507433641,-500.0,0.00014799,2]
[391311278,1760507433650,-500.0,0.00014799,2]
[391311279,1760507433660,-500.0,0.00014799,2]
[391311280,1760507433669,-500.0,0.00014799,2]
[391311281,1760507433678,-500.0,0.00014799,2]
[391311282,1760507433688,-438.63192801,0.00014799,2]
[391311283,1760507433697,-621.01425996,0.00014799,2]
[391311284,1760507433706,-500.0,0.00014799,2]
[391311285,1760507433716,-500.0,0.00014799,2]
[391311286,1760507433725,-367.73438273,0.00014799,2]
[391311287,1760507433735,-155.818238,0.00014799,2]
[391311288,1760507433744,-500.0,0.00014799,2]
[391311289,1760507433753,-500.0,0.00014799,2]
[391311290,1760507433763,-500.0,0.00014799,2]
[391311291,1760507433772,-500.0,0.00014799,2]
[391311292,1760507433781,-40101.47,0.000148,2]
[391311293,1760507433791,-266.10683244,0.000148,2]
[391311294,1760507433801,-57852.64007175,0.000148,2]
[391311296,1760507437811,-398.1,0.00014789,2]
[391311297,1760507437825,-341.428595,0.0001479,2]
[391311298,1760507437836,-56.671405,0.0001479,2]
[391311299,1760507437845,-398.1,0.0001479,2]
[391311300,1760507437854,-398.1,0.0001479,2]
[391311301,1760507437863,-398.1,0.0001479,2]
[391311302,1760507437872,-500.0,0.00014798,2]
[391311303,1760507437881,-152.514495,0.00014798,2]
[391311304,1760507437924,-347.485505,0.00014798,2]
[391311305,1760507437934,-500.0,0.00014798,2]
[391311306,1760507437943,-500.0,0.00014798,2]
[391311307,1760507437952,-500.0,0.00014798,2]
[391311308,1760507437961,-500.0,0.00014798,2]
[391311309,1760507437970,-186.28695802,0.00014798,2]
[391311310,1760507437980,-500.0,0.00014798,2]
[391311311,1760507437989,-500.0,0.00014798,2]
[391311312,1760507437998,-3331.856172,0.000148,2]
[391311313,1760507438010,-869.76961237,0.000148,2]
[391311317,1760507439922,-628.48069312,0.000147,2]
[391311318,1760507439935,-2262.0,0.000147,2]
[391311319,1760507440035,-2109.51930688,0.000147,2]
[391311320,1760507440045,-150.0,0.00014738,2]
[391311321,1760507440054,-150.0,0.00014738,2]
[391311322,1760507440064,-8942.28073586,0.000148,2]
[391311323,1760507440095,-178205.97111855,0.000148,2]
[391311324,1760507440104,-151.0,0.000148,2]
[391311325,1760507440114,-250.222887,0.000148,2]
[391311326,1760507440123,-151.0,0.000148,2]
[391311327,1760507440132,-151.0,0.000148,2]
[391311328,1760507440142,-151.0,0.000148,2]
[391311329,1760507440151,-151.0,0.000148,2]
[391311330,1760507440160,-151.0,0.000148,2]
[391311331,1760507440170,-151.0,0.000148,2]
[391311332,1760507440187,-151.0,0.000148,2]
[391311333,1760507440206,-187.108958,0.000148,2]
[391311334,1760507440222,-151.0,0.000148,2]
[391311335,1760507440231,-151.0,0.000148,2]
[391311336,1760507440240,-263.096341,0.000148,2]
[391311337,1760507440249,-151.0,0.000148,2]
[391311338,1760507440258,-152.310349,0.000148,2]
[391311339,1760507440268,-164.214643,0.000148,2]
[391311340,1760507440277,-151.0,0.000148,2]
[391311341,1760507440286,-151.0,0.000148,2]
[391311343,1760507440300,-151.0,0.000148,2]
[391311344,1760507440309,-195.389365,0.000148,2]
[391311345,1760507440319,-195.389365,0.000148,2]
[391311346,1760507440328,-192.38028,0.000148,2]
[391311347,1760507440337,-192.38028,0.000148,2]
[391311348,1760507440346,-151.0,0.000148,2]
[391311349,1760507440354,-192.38028,0.000148,2]
[391311350,1760507440363,-192.38028,0.000148,2]
[391311351,1760507440373,-415.430895,0.000148,2]
[391311352,1760507440382,-165.43537,0.000148,2]
[391311353,1760507440391,-165.43537,0.000148,2]
[391311354,1760507440399,-195.389365,0.000148,2]
[391311355,1760507440408,-415.430895,0.000148,2]
[391311356,1760507440417,-165.43537,0.000148,2]
[391311357,1760507440426,-195.389365,0.000148,2]
[391311358,1760507440436,-415.430895,0.000148,2]
[391311359,1760507440445,-165.43537,0.000148,2]
[391311360,1760507440454,-415.430895,0.000148,2]
[391311361,1760507440463,-151.0,0.000148,2]
[391311362,1760507440472,-151.0,0.000148,2]
[391311363,1760507440481,-151.0,0.000148,2]
[391311364,1760507440490,-153.664954,0.000148,2]
[391311365,1760507440499,-151.0,0.000148,2]
[391311366,1760507440508,-153.664954,0.000148,2]
[391311367,1760507440518,-153.664954,0.000148,2]
[391311368,1760507440526,-153.664954,0.000148,2]
[391311369,1760507440535,-151.0,0.000148,2]
[391311370,1760507440544,-264.302804,0.000148,2]
[391311371,1760507440553,-152.67373,0.000148,2]
[391311372,1760507440562,-151.0,0.000148,2]
[391311373,1760507440571,-151.0,0.000148,2]
[391311374,1760507440580,-151.0,0.000148,2]
[391311375,1760507440590,-284.446947,0.000148,2]
[391311376,1760507440598,-233.548951,0.000148,2]
[391311377,1760507440607,-151.0,0.000148,2]
[391311378,1760507440616,-151.0,0.000148,2]
[391311379,1760507440626,-33508.0,0.000148,2]
[391311380,1760507440635,-151.0,0.000148,2]
[391311381,1760507440643,-845.611953,0.000148,2]
[391311382,1760507440653,-151.0,0.000148,2]
[391311383,1760507440662,-845.611953,0.000148,2]
[391311384,1760507440671,-845.611953,0.000148,2]
[391311385,1760507440679,-845.611953,0.000148,2]
[391311386,1760507440690,-151.0,0.000148,2]
[391311387,1760507440700,-151.0,0.000148,2]
[391311388,1760507440709,-151.0,0.000148,2]
[391311389,1760507440717,-151.0,0.000148,2]
[391311390,1760507440727,-151.0,0.000148,2]
[391311391,1760507440735,-151.0,0.000148,2]
[391311392,1760507440744,-151.0,0.000148,2]
[391311393,1760507440753,-151.0,0.000148,2]
[391311394,1760507440762,-151.0,0.000148,2]
[391311395,1760507440771,-656.491279,0.000148,2]
[391311396,1760507440780,-151.0,0.000148,2]
[391311397,1760507440790,-230.098934,0.000148,2]
[391311398,1760507440799,-656.491279,0.000148,2]
[391311399,1760507440808,-656.491279,0.000148,2]
[391311400,1760507440818,-656.491279,0.000148,2]
[391311401,1760507440827,-463.260429,0.000148,2]
[391311402,1760507440835,-152.584248,0.000148,2]
[391311403,1760507440844,-463.260429,0.000148,2]
[391311404,1760507440853,-151.0,0.000148,2]
[391311405,1760507440862,-463.260429,0.000148,2]
[391311406,1760507440871,-463.260429,0.000148,2]
[391311407,1760507440880,-151.0,0.000148,2]
[391311408,1760507440889,-168.548398,0.000148,2]
[391311409,1760507440898,-168.548398,0.000148,2]
[391311410,1760507440907,-168.548398,0.000148,2]
[391311411,1760507440915,-168.548398,0.000148,2]
[391311412,1760507440925,-151.0,0.000148,2]
[391311413,1760507440935,-151.0,0.000148,2]
[391311414,1760507440944,-151.0,0.000148,2]
[391311415,1760507440953,-151.0,0.000148,2]
[391311416,1760507440962,-151.0,0.000148,2]
[391311417,1760507440971,-151.0,0.000148,2]
[391311418,1760507440980,-152.677963,0.000148,2]
[391311419,1760507440989,-151.0,0.000148,2]
[391311420,1760507440998,-151.0,0.000148,2]
[391311421,1760507441007,-151.0,0.000148,2]
[391311422,1760507441016,-151.0,0.000148,2]
[391311423,1760507441025,-151.0,0.000148,2]
[391311424,1760507441034,-154.084987,0.000148,2]
[391311425,1760507441043,-151.0,0.000148,2]
[391311426,1760507441052,-151.0,0.000148,2]
[391311427,1760507441062,-151.0,0.000148,2]
[391311428,1760507441072,-151.0,0.000148,2]
[391311429,1760507441081,-1722.15381,0.000148,2]
[391311430,1760507441090,-153.749584,0.000148,2]
[391311431,1760507441099,-1722.15381,0.000148,2]
[391311432,1760507441108,-1722.15381,0.000148,2]
[391311433,1760507441117,-151.722446,0.000148,2]
[391311434,1760507441126,-152.802446,0.000148,2]
[391311435,1760507441135,-151.0,0.000148,2]
[391311436,1760507441144,-1722.15381,0.000148,2]
[391311437,1760507441154,-151.0,0.000148,2]
[391311438,1760507441163,-151.0,0.000148,2]
[391311439,1760507441171,-151.0,0.000148,2]
[391311440,1760507441180,-155.219559,0.000148,2]
[391311441,1760507441190,-2593.46276,0.000148,2]
[391311442,1760507441198,-2593.46276,0.000148,2]
[391311443,1760507441208,-2593.46276,0.000148,2]
[391311444,1760507441217,-253.314743,0.000148,2]
[391311445,1760507441227,-2593.46276,0.000148,2]
[391311446,1760507441235,-253.314743,0.000148,2]
[391311447,1760507441244,-253.314743,0.000148,2]
[391311448,1760507441253,-253.314743,0.000148,2]
[391311449,1760507441262,-151.0,0.000148,2]
[391311450,1760507441271,-151.0,0.000148,2]
[391311451,1760507441279,-262.727368,0.000148,2]
[391311452,1760507441289,-151.0,0.000148,2]
[391311453,1760507441302,-151.0,0.000148,2]
[391311454,1760507441310,-262.727368,0.000148,2]
[391311455,1760507441319,-151.0,0.000148,2]
[391311456,1760507441328,-151.0,0.000148,2]
[391311457,1760507441338,-262.727368,0.000148,2]
[391311458,1760507441347,-262.727368,0.000148,2]
[391311459,1760507441356,-151.0,0.000148,2]
[391311460,1760507441366,-5992.247061,0.000148,2]
[391311461,1760507441375,-151.0,0.000148,2]
[391311462,1760507441384,-151.0,0.000148,2]
[391311463,1760507441393,-5992.247061,0.000148,2]
[391311464,1760507441402,-151.0,0.000148,2]
[391311465,1760507441414,-5992.247061,0.000148,2]
[391311466,1760507441423,-151.0,0.000148,2]
[391311467,1760507441433,-5992.247061,0.000148,2]
[391311468,1760507441442,-218.809076,0.000148,2]
[391311469,1760507441451,-218.809076,0.000148,2]
[391311470,1760507441460,-151.0,0.000148,2]
[391311471,1760507441469,-151.0,0.000148,2]
[391311472,1760507441478,-236.494568,0.000148,2]
[391311473,1760507441486,-218.809076,0.000148,2]
[391311474,1760507441495,-151.0,0.000148,2]
[391311475,1760507441505,-218.809076,0.000148,2]
[391311476,1760507441514,-236.494568,0.000148,2]
[391311477,1760507441523,-151.0,0.000148,2]
[391311478,1760507441533,-236.494568,0.000148,2]
[391311479,1760507441542,-151.0,0.000148,2]
[391311480,1760507441551,-155.356005,0.000148,2]
[391311481,1760507441560,-728745.54236897,0.000148,2]
[391311482,1760507441569,-8329.98225918,0.00014811,2]
[391311483,1760507441579,-3686.02513298,0.00014811,2]
[391311484,1760507441587,-266.10683241,0.00014817,2]
[391311485,1760507441596,-267.02445098,0.00014818,2]
[391311486,1760507441605,-200.0,0.0001483,2]
[391311487,1760507441614,-8329.98225918,0.00014833,2]
[391311488,1760507441623,-266.10683241,0.00014833,2]
[391311489,1760507441632,-3686.02513298,0.00014833,2]
[391311490,1760507441642,-169.99999581,0.00014833,2]
[391311491,1760507441651,-3434.8443728,0.0001484,2]
[391311492,1760507441660,-193.62744714,0.00014842,2]
[391311493,1760507441669,-150.0,0.00014844,2]
[391311494,1760507441678,-267.02445098,0.00014845,2]
[391311495,1760507441687,-150.0,0.00014848,2]
[391311496,1760507441696,-266.10683241,0.0001485,2]
[391311497,1760507441705,-200.60293038,0.00014854,2]
[391311498,1760507441715,-150.0,0.00014854,2]
[391311499,1760507441724,-150.0,0.00014854,2]
[391311500,1760507441732,-150.0,0.00014854,2]
[391311501,1760507441741,-200.0,0.00014854,2]
[391311502,1760507441751,-173.61964304,0.00014854,2]
[391311503,1760507441760,-150.0,0.00014854,2]
[391311504,1760507441769,-150.0,0.00014854,2]
[391311505,1760507441779,-500.0,0.00014854,2]
[391311506,1760507441788,-600.0,0.00014854,2]
[391311507,1760507441796,-150.0,0.00014854,2]
[391311508,1760507441805,-150.0,0.00014854,2]
[391311509,1760507441814,-150.0,0.00014854,2]
[391311510,1760507441823,-150.0,0.00014854,2]
[391311511,1760507441832,-500.0,0.00014854,2]
[391311512,1760507441841,-150.0,0.00014854,2]
[391311513,1760507441850,-150.0,0.00014854,2]
[391311514,1760507441859,-8329.98225918,0.00014855,2]
[391311515,1760507441868,-3686.02513298,0.00014856,2]
[391311516,1760507441877,-2500.95568461,0.00014858,2]
[391311517,1760507441886,-1250.47784238,0.00014859,2]
[391311518,1760507441895,-342.78358858,0.0001486,2]
[391311519,1760507441904,-300.0,0.0001486,2]
[391311520,1760507441913,-250.0,0.0001486,2]
[391311521,1760507441922,-193.62744714,0.00014866,2]
[391311522,1760507441931,-266.10683241,0.00014867,2]
[391311523,1760507441941,-267.02445098,0.00014873,2]
[391311524,1760507441950,-500.0,0.00014873,2]
[391311525,1760507441959,-500.0,0.00014873,2]
[391311526,1760507441968,-500.0,0.00014873,2]
[391311527,1760507441977,-500.0,0.00014873,2]
[391311528,1760507441986,-500.0,0.00014873,2]
[391311529,1760507441996,-500.0,0.00014873,2]
[391311530,1760507442005,-151.0,0.00014874,2]
[391311531,1760507442015,-151.0,0.00014874,2]
[391311532,1760507442024,-193.62744714,0.00014876,2]
[391311533,1760507442033,-9913.0,0.00014877,2]
[391311534,1760507442042,-6581.0,0.00014877,2]
[391311535,1760507442051,-171082.0,0.00014877,2]
[391311536,1760507442060,-151.0,0.00014877,2]
[391311537,1760507442070,-151.0,0.00014877,2]
[391311538,1760507442079,-151.0,0.00014877,2]
[391311539,1760507442087,-151.0,0.00014877,2]
[391311540,1760507442097,-151.0,0.00014877,2]
[391311541,1760507442106,-151.0,0.00014877,2]
[391311542,1760507442115,-151.0,0.00014877,2]
[391311543,1760507442124,-151.0,0.00014877,2]
[391311544,1760507442133,-151.0,0.00014877,2]
[391311545,1760507442142,-151.0,0.00014877,2]
[391311546,1760507442151,-151.0,0.00014877,2]
[391311547,1760507442160,-151.0,0.00014877,2]
[391311548,1760507442170,-151.0,0.00014877,2]
[391311549,1760507442179,-151.0,0.00014877,2]
[391311550,1760507442190,-253.539428,0.00014877,2]
[391311551,1760507442199,-151.0,0.00014877,2]
[391311552,1760507442208,-151.0,0.00014877,2]
[391311553,1760507442217,-151.0,0.00014877,2]
[391311554,1760507442226,-151.0,0.00014877,2]
[391311555,1760507442235,-151.0,0.00014877,2]
[391311556,1760507442244,-153.245577,0.00014877,2]
[391311557,1760507442253,-152.368931,0.00014877,2]
[391311558,1760507442261,-151.0,0.00014877,2]
[391311559,1760507442270,-151.0,0.00014877,2]